fUSD/lending_fUSD_20250304
["ID","MTS","AMOUNT","RATE_DAILY","PERIOD"]
[355322907,1741065052310,-741.14,0.00012693,2]
[355322909,1741065052320,-500.0,0.00012693,2]
[355322911,1741065052328,-500.0,0.00012693,2]
[355322913,1741065052337,-322.05479949,0.00012693,2]
[355322915,1741065052347,-500.0,0.00012693,2]
[355322917,1741065052356,-765.81,0.00012693,2]
[355322918,1741065052366,-386.42409453,0.00012693,2]
[355322919,1741065052375,-1347.84,0.00012693,2]
[355322920,1741065052384,-747.48,0.00012693,2]
[355322921,1741065052395,-334.5772262,0.00012693,2]
[355322922,1741065052404,-510.46462407,0.00012693,2]
[355322923,1741065052413,-505.81661227,0.00012693,2]
[355322924,1741065052423,-500.53,0.00012693,2]
[355322925,1741065052432,-1274.7,0.00012693,2]
[355322926,1741065052441,-505.042429,0.00012693,2]
[355322927,1741065052450,-500.0,0.00012693,2]
[355322928,1741065052459,-503.2232278,0.00012693,2]
[355322929,1741065052468,-547.0,0.00012693,2]
[355322930,1741065052478,-1924.45,0.00012693,2]
[355322931,1741065052488,-522.56905394,0.00012693,2]
[355322932,1741065052497,-500.0,0.00012693,2]
[355322933,1741065052507,-500.0,0.00012693,2]
[355322934,1741065052520,-500.0,0.00012693,2]
[355322935,1741065052531,-1542.1,0.00012693,2]
[355322936,1741065052544,-500.0,0.00012693,2]
[355322937,1741065052553,-602.16,0.00012693,2]
[355322939,1741065052562,-510.97322755,0.00012693,2]
[355322940,1741065052573,-500.0,0.00012693,2]
[355322942,1741065052583,-511.38065122,0.00012693,2]
[355322944,1741065052593,-1275.85,0.00012693,2]
[355322946,1741065052603,-670.43,0.00012693,2]
[355322947,1741065052613,-500.0,0.00012693,2]
[355322949,1741065052622,-974.12,0.00012693,2]
[355322951,1741065052631,-500.0,0.00012693,2]
[355322953,1741065052641,-500.0,0.00012693,2]
[355322955,1741065052650,-506.44746104,0.00012693,2]
[355322957,1741065052660,-500.0,0.00012693,2]
[355322959,1741065052669,-500.0,0.00012693,2]
[355322961,1741065052679,-671.86,0.00012693,2]
[355322963,1741065052688,-500.0,0.00012693,2]
[355322965,1741065052697,-1780.34,0.00012693,2]
[355322967,1741065052709,-500.0,0.00012693,2]
[355322969,1741065052718,-500.0,0.00012693,2]
[355322971,1741065052727,-663.57,0.00012693,2]
[355322973,1741065052736,-500.0,0.00012693,2]
[355322975,1741065052746,-1910.07,0.00012693,2]
[355322977,1741065052755,-529.09,0.00012693,2]
[355322979,1741065052765,-1035.34,0.00012693,2]
[355322981,1741065052774,-500.0,0.00012693,2]
[355322983,1741065052784,-500.0,0.00012693,2]
[355322985,1741065052793,-506.29278242,0.00012693,2]
[355322987,1741065052804,-500.0,0.00012693,2]
[355322989,1741065052813,-500.0,0.00012693,2]
[355322991,1741065052822,-500.0,0.00012693,2]
[355322993,1741065052832,-446.23664454,0.00012693,2]
[355322995,1741065052842,-510.92735234,0.00012693,2]
[355322997,1741065052851,-500.0,0.00012693,2]
[355322999,1741065052860,-500.0,0.00012693,2]
[355323001,1741065052870,-500.0,0.00012693,2]
[355323003,1741065052879,-500.0,0.00012693,2]
[355323005,1741065052888,-500.0,0.00012693,2]
[355323007,1741065052898,-1276.74,0.00012693,2]
[355323009,1741065052908,-500.0,0.00012693,2]
[355323011,1741065052917,-500.0,0.00012693,2]
[355323013,1741065052927,-500.0,0.00012693,2]
[355323015,1741065052936,-500.0,0.00012693,2]
[355323017,1741065052945,-644.07,0.00012693,2]
[355323019,1741065052954,-1726.17,0.00012693,2]
[355323021,1741065052963,-640.03540138,0.00012693,2]
[355323023,1741065052973,-500.0,0.00012693,2]
[355323025,1741065052983,-788.6,0.00012693,2]
[355323027,1741065052992,-937.17,0.00012693,2]
[355323029,1741065053001,-500.0,0.00012693,2]
[355323031,1741065053011,-500.0,0.00012693,2]
[355323033,1741065053022,-890.19,0.00012693,2]
[355323035,1741065053032,-500.0,0.00012693,2]
[355323037,1741065053042,-500.0,0.00012693,2]
[355323039,1741065053051,-500.0,0.00012693,2]
[355323041,1741065053060,-500.0,0.00012693,2]
[355323043,1741065053070,-2727.56,0.00012693,2]
[355323045,1741065053079,-500.0,0.00012693,2]
[355323047,1741065053089,-500.0,0.00012693,2]
[355323049,1741065053098,-692.76,0.00012693,2]
[355323051,1741065053108,-630.44,0.00012693,2]
[355323053,1741065053118,-1943.7,0.00012693,2]
[355323055,1741065053127,-501.11782681,0.00012693,2]
[355323057,1741065053138,-500.0,0.00012693,2]
[355323059,1741065053147,-779.77,0.00012693,2]
[355323061,1741065053157,-500.0,0.00012693,2]
[355323063,1741065053166,-1798.27,0.00012693,2]
[355323065,1741065053175,-500.0,0.00012693,2]
[355323067,1741065053185,-500.0,0.00012693,2]
[355323069,1741065053194,-500.0,0.00012693,2]
[355323071,1741065053203,-500.0,0.00012693,2]
[355323073,1741065053212,-500.0,0.00012693,2]
[355323075,1741065053222,-1457.23,0.00012693,2]
[355323077,1741065053232,-500.0,0.00012693,2]
[355323078,1741065053241,-509.46326128,0.00012693,2]
[355323080,1741065053251,-500.0,0.00012693,2]
[355323082,1741065053261,-500.0,0.00012693,2]
[355323085,1741065053275,-500.0,0.00012693,2]
[355323086,1741065053284,-2340.74,0.00012693,2]
[355323089,1741065053303,-500.0,0.00012693,2]
[355323092,1741065053316,-533.04087753,0.00012693,2]
[355323094,1741065053326,-1053.15,0.00012693,2]
[355323096,1741065053336,-500.0,0.00012693,2]
[355323098,1741065053347,-500.0,0.00012693,2]
[355323100,1741065053357,-500.0,0.00012693,2]
[355323102,1741065053367,-500.0,0.00012693,2]
[355323104,1741065053377,-872.04,0.00012693,2]
[355323106,1741065053387,-500.93738129,0.00012693,2]
[355323108,1741065053397,-500.0,0.00012693,2]
[355323110,1741065053406,-500.0,0.00012693,2]
[355323112,1741065053415,-500.0,0.00012693,2]
[355323114,1741065053425,-500.0,0.00012693,2]
[355323116,1741065053435,-500.0,0.00012693,2]
[355323118,1741065053444,-500.0,0.00012693,2]
[355323120,1741065053455,-748.73,0.00012693,2]
[355323122,1741065053465,-964.86,0.00012693,2]
[355323124,1741065053475,-500.0,0.00012693,2]
[355323126,1741065053485,-500.0,0.00012693,2]
[355323128,1741065053497,-500.0,0.00012693,2]
[355323130,1741065053507,-503.6905129,0.00012693,2]
[355323132,1741065053523,-500.0,0.00012693,2]
[355323134,1741065053537,-501.95306068,0.00012693,2]
[355323136,1741065053548,-503.68349753,0.00012693,2]
[355323138,1741065053558,-1372.91,0.00012693,2]
[355323140,1741065053568,-500.0,0.00012693,2]
[355323142,1741065053578,-697.2,0.00012693,2]
[355323144,1741065053588,-500.0,0.00012693,2]
[355323146,1741065053598,-500.0,0.00012693,2]
[355323148,1741065053608,-500.0,0.00012693,2]
[355323150,1741065053619,-2294.63,0.00012693,2]
[355323152,1741065053629,-500.0,0.00012693,2]
[355323154,1741065053641,-500.0,0.00012693,2]
[355323157,1741065053652,-500.0,0.00012693,2]
[355323159,1741065053662,-500.0,0.00012693,2]
[355323161,1741065053672,-500.0,0.00012693,2]
[355323163,1741065053681,-500.0,0.00012693,2]
[355323165,1741065053692,-516.27059961,0.00012693,2]
[355323167,1741065053701,-500.0,0.00012693,2]
[355323169,1741065053712,-500.0,0.00012693,2]
[355323171,1741065053722,-555.11,0.00012693,2]
[355323173,1741065053732,-500.0,0.00012693,2]
[355323174,1741065053742,-150.0,0.00012693,2]
[355323177,1741065053752,-1063.01,0.00012693,2]
[355323179,1741065053762,-500.0,0.00012693,2]
[355323181,1741065053774,-500.0,0.00012693,2]
[355323183,1741065053784,-689.77087721,0.00012693,2]
[355323185,1741065053794,-502.3688292,0.00012693,2]
[355323187,1741065053804,-2150.03,0.00012693,2]
[355323189,1741065053814,-839.92,0.00012693,2]
[355323191,1741065053824,-500.0,0.00012693,2]
[355323193,1741065053833,-1237.78,0.00012693,2]
[355323195,1741065053843,-500.0,0.00012693,2]
[355323197,1741065053853,-500.0,0.00012693,2]
[355323199,1741065053862,-521.84648897,0.00012693,2]
[355323201,1741065053872,-500.0,0.00012693,2]
[355323203,1741065053882,-1529.6,0.00012693,2]
[355323205,1741065053893,-667.43,0.00012693,2]
[355323207,1741065053903,-500.0,0.00012693,2]
[355323209,1741065053913,-500.0,0.00012693,2]
[355323211,1741065053923,-500.0,0.00012693,2]
[355323213,1741065053932,-500.0,0.00012693,2]
[355323215,1741065053942,-500.0,0.00012693,2]
[355323217,1741065053952,-739.29,0.00012693,2]
[355323219,1741065053962,-500.0,0.00012693,2]
[355323221,1741065053972,-500.0,0.00012693,2]
[355323223,1741065053981,-1920.75,0.00012693,2]
[355323225,1741065053990,-1213.66,0.00012693,2]
[355323227,1741065054000,-2554.86,0.00012693,2]
[355323229,1741065054010,-731.55,0.00012693,2]
[355323231,1741065054022,-565.55284346,0.00012693,2]
[355323233,1741065054032,-1423.29,0.00012693,2]
[355323235,1741065054042,-500.0,0.00012693,2]
[355323237,1741065054052,-500.0,0.00012693,2]
[355323239,1741065054061,-1862.47,0.00012693,2]
[355323241,1741065054071,-500.0,0.00012693,2]
[355323243,1741065054080,-500.0,0.00012693,2]
[355323245,1741065054090,-500.0,0.00012693,2]
[355323247,1741065054100,-500.0,0.00012693,2]
[355323249,1741065054110,-500.0,0.00012693,2]
[355323251,1741065054120,-500.0,0.00012693,2]
[355323253,1741065054129,-500.0,0.00012693,2]
[355323255,1741065054139,-500.0,0.00012693,2]
[355323257,1741065054150,-500.0,0.00012693,2]
[355323259,1741065054160,-500.0,0.00012693,2]
[355323261,1741065054170,-500.0,0.00012693,2]
[355323263,1741065054180,-1353.36,0.00012693,2]
[355323265,1741065054189,-691.69,0.00012693,2]
[355323267,1741065054199,-500.0,0.00012693,2]
[355323269,1741065054208,-1228.96,0.00012693,2]
[355323271,1741065054218,-500.0,0.00012693,2]
[355323273,1741065054227,-500.0,0.00012693,2]
[355323275,1741065054237,-500.0,0.00012693,2]
[355323277,1741065054247,-500.0,0.00012693,2]
[355323279,1741065054256,-630.91,0.00012693,2]
[355323281,1741065054267,-843.92,0.00012693,2]
[355323283,1741065054277,-500.0,0.00012693,2]
[355323285,1741065054287,-290.58729587,0.00012694,2]
[355323287,1741065054297,-150.0,0.00012695,2]
[355323289,1741065054307,-295.3606686,0.00012703,2]
[355323291,1741065054316,-150.0,0.00012706,2]
[355323293,1741065054326,-150.0,0.00012707,2]
[355323295,1741065054335,-150.0,0.00012709,2]
[355323297,1741065054345,-150.0,0.00012727,2]
[355323299,1741065054355,-290.58729587,0.00012728,2]
[355323301,1741065054364,-150.0,0.00012746,2]
[355323303,1741065054373,-150.0,0.00012757,2]
[355323305,1741065054383,-150.0,0.00012761,2]
[355323307,1741065054392,-290.58729587,0.00012763,2]
[355323309,1741065054401,-150.0,0.00012763,2]
[355323311,1741065054410,-1000.0,0.00012769,2]
[355323313,1741065054420,-150.0,0.00012777,2]
[355323315,1741065054429,-1102.26066027,0.00012778,2]
[355323317,1741065054439,-150.0,0.00012781,2]
[355323319,1741065054449,-223.19204293,0.00012785,2]
[355323321,1741065054459,-290.58729587,0.00012797,2]
[355323323,1741065054468,-1000.0,0.00012797,2]
[355323325,1741065054478,-290.58729587,0.00012831,2]
[355323327,1741065054488,-150.0,0.00012834,2]
[355323330,1741065054498,-290.58729587,0.00012866,2]
[355323331,1741065054507,-432.40569318,0.00012866,2]
[355323333,1741065054518,-295.7958174,0.00012867,2]
[355323336,1741065054529,-150.0,0.00012869,2]
[355323337,1741065054539,-2471.936,0.0001287,2]
[355323340,1741065054550,-185.62733776,0.0001287,2]
[355323342,1741065054560,-421.25414,0.0001287,2]
[355323344,1741065054569,-150.0,0.00012883,2]
[355323346,1741065054580,-150.0,0.00012888,2]
[355323348,1741065054590,-150.0,0.00012893,2]
[355323350,1741065054599,-150.0,0.00012896,2]
[355323352,1741065054608,-1624.7691,0.000129,2]
[355323354,1741065054618,-152.38,0.000129,2]
[355323356,1741065054627,-442.14,0.000129,2]
[355323358,1741065054637,-150.0,0.000129,2]
[355323360,1741065054646,-300.0,0.000129,2]
[355323362,1741065054656,-300.0,0.000129,2]
[355323364,1741065054665,-150.0,0.000129,2]
[355323366,1741065054675,-440.1,0.000129,2]
[355323368,1741065054684,-150.0,0.000129,2]
[355323370,1741065054694,-290.58729587,0.000129,2]
[355323372,1741065054703,-432.40569318,0.000129,2]
[355323374,1741065054713,-3307.70798256,0.000129,2]
[355323376,1741065054723,-150.0,0.00012911,2]
[355323378,1741065054735,-150.0,0.00012917,2]
[355323380,1741065054745,-804.02657042,0.00012919,2]
[355323382,1741065054754,-500.0,0.0001292,2]
[355323384,1741065054764,-150.0,0.00012924,2]
[355323386,1741065054777,-150.0,0.00012925,2]
[355323388,1741065054787,-1000.0,0.00012932,2]
[355323390,1741065054797,-276.79720527,0.00012954,2]
[355323392,1741065054807,-500.0,0.00012954,2]
[355323394,1741065054822,-500.0,0.00012954,2]
[355323396,1741065054832,-500.0,0.00012954,2]
[355323398,1741065054842,-607.15601433,0.00012954,2]
[355323400,1741065054852,-500.0,0.00012954,2]
[355323403,1741065054862,-500.0,0.00012954,2]
[355323405,1741065054872,-500.0,0.00012954,2]
[355323407,1741065054882,-500.0,0.00012954,2]
[355323409,1741065054891,-500.0,0.00012954,2]
[355323411,1741065054901,-500.0,0.00012954,2]
[355323413,1741065054911,-500.0,0.00012954,2]
[355323415,1741065054921,-500.0,0.00012954,2]
[355323417,1741065054931,-188.781149,0.00012954,2]
[355323419,1741065054941,-500.0,0.00012954,2]
[355323421,1741065054952,-500.0,0.00012954,2]
[355323423,1741065054961,-500.0,0.00012954,2]
[355323425,1741065054972,-500.0,0.00012954,2]
[355323427,1741065054982,-500.0,0.00012954,2]
[355323429,1741065054992,-500.0,0.00012954,2]
[355323431,1741065055002,-2031.0,0.00012955,2]
[355323433,1741065055011,-1277.0,0.00012955,2]
[355323435,1741065055025,-150.0,0.00012955,2]
[355323437,1741065055034,-571.0,0.00012955,2]
[355323439,1741065055044,-1583.0,0.00012955,2]
[355323441,1741065055054,-640.0,0.00012955,2]
[355323443,1741065055063,-786.0,0.00012955,2]
[355323446,1741065055073,-907.0,0.00012955,2]
[355323448,1741065055083,-541.0,0.00012955,2]
[355323450,1741065055093,-1269.0,0.00012955,2]
[355323452,1741065055102,-1427.0,0.00012955,2]
[355323454,1741065055112,-4136.467,0.00012955,2]
[355323456,1741065055123,-3929.0,0.00012956,2]
[355323457,1741065055132,-1012.0,0.00012956,2]
[355323460,1741065055142,-201.095,0.00012956,2]
[355323462,1741065055152,-1113.0,0.00012956,2]
[355323487,1741065055375,-343.82771505,0.00012958,2]
[355323490,1741065055411,-150.0,0.00012958,2]
[355323492,1741065055421,-2035.06,0.00012964,2]
[355323494,1741065055430,-783.09,0.00012964,2]
[355323496,1741065055440,-1043.78,0.00012964,2]
[355323498,1741065055449,-500.0,0.00012964,2]
[355323500,1741065055458,-500.0,0.00012964,2]
[355323502,1741065055467,-1278.82,0.00012964,2]
[355323504,1741065055476,-500.0,0.00012964,2]
[355323506,1741065055485,-1418.13,0.00012964,2]
[355323508,1741065055494,-865.33,0.00012964,2]
[355323510,1741065055504,-500.0,0.00012964,2]
[355323512,1741065055513,-843.99,0.00012964,2]
[355323514,1741065055527,-734.61,0.00012964,2]
[355323516,1741065055536,-928.82,0.00012964,2]
[355323518,1741065055549,-500.0,0.00012964,2]
[355323520,1741065055558,-1097.7,0.00012964,2]
[355323522,1741065055567,-751.85,0.00012964,2]
[355323524,1741065055578,-500.0,0.00012964,2]
[355323526,1741065055587,-917.17,0.00012964,2]
[355323528,1741065055596,-503.58354243,0.00012964,2]
[355323529,1741065055605,-1147.0,0.00012964,2]
[355323531,1741065055614,-940.23,0.00012964,2]
[355323533,1741065055625,-1400.36,0.00012964,2]
[355323535,1741065055635,-500.0,0.00012964,2]
[355323537,1741065055644,-500.0,0.00012964,2]
[355323539,1741065055654,-500.0,0.00012964,2]
[355323541,1741065055663,-500.0,0.00012964,2]
[355323543,1741065055672,-500.0,0.00012964,2]
[355323545,1741065055681,-500.0,0.00012964,2]
[355323547,1741065055691,-500.0,0.00012964,2]
[355323549,1741065055701,-500.0,0.00012964,2]
[355323551,1741065055711,-500.0,0.00012964,2]
[355323553,1741065055721,-500.0,0.00012964,2]
[355323555,1741065055730,-500.0,0.00012964,2]
[355323557,1741065055740,-1594.38,0.00012964,2]
[355323559,1741065055749,-500.0,0.00012964,2]
[355323561,1741065055758,-1007.12,0.00012964,2]
[355323563,1741065055769,-500.0,0.00012964,2]
[355323565,1741065055778,-1782.3,0.00012964,2]
[355323567,1741065055788,-512.42,0.00012964,2]
[355323569,1741065055797,-663.5,0.00012964,2]
[355323571,1741065055806,-500.0,0.00012964,2]
[355323573,1741065055816,-500.0,0.00012964,2]
[355323575,1741065055825,-1867.29,0.00012964,2]
[355323577,1741065055835,-1381.28,0.00012964,2]
[355323579,1741065055845,-1300.9,0.00012964,2]
[355323581,1741065055854,-500.0,0.00012964,2]
[355323583,1741065055864,-702.31,0.00012964,2]
[355323585,1741065055873,-981.66,0.00012964,2]
[355323587,1741065055883,-500.0,0.00012964,2]
[355323589,1741065055892,-500.0,0.00012964,2]
[355323591,1741065055903,-1526.56,0.00012964,2]
[355323593,1741065055913,-767.26,0.00012964,2]
[355323595,1741065055922,-2406.39,0.00012964,2]
[355323597,1741065055932,-500.0,0.00012964,2]
[355323599,1741065055942,-928.935834,0.00012964,2]
[355323600,1741065055952,-584.57,0.00012964,2]
[355323602,1741065055962,-707.71,0.00012964,2]
[355323604,1741065055972,-1187.91,0.00012964,2]
[355323606,1741065055982,-1631.51,0.00012964,2]
[355323608,1741065055992,-3484.62,0.00012964,2]
[355323611,1741065056001,-1566.317868,0.00012964,2]
[355323612,1741065056011,-500.0,0.00012964,2]
[355323614,1741065056021,-1519.77,0.00012964,2]
[355323616,1741065056030,-2658.24,0.00012964,2]
[355323618,1741065056040,-597.36,0.00012964,2]
[355323620,1741065056051,-500.0,0.00012964,2]
[355323622,1741065056060,-2100.19,0.00012964,2]
[355323624,1741065056070,-2123.46,0.00012964,2]
[355323626,1741065056080,-1464.46,0.00012964,2]
[355323628,1741065056090,-1323.07,0.00012964,2]
[355323630,1741065056099,-500.0,0.00012964,2]
[355323632,1741065056109,-2447.07,0.00012964,2]
[355323634,1741065056119,-2094.14,0.00012964,2]
[355323636,1741065056129,-973.01,0.00012964,2]
[355323638,1741065056138,-1623.48,0.00012964,2]
[355323640,1741065056147,-4417.37,0.00012964,2]
[355323641,1741065056156,-1529.54,0.00012964,2]
[355323642,1741065056165,-1611.12,0.00012964,2]
[355323643,1741065056174,-3411.63,0.00012964,2]
[355323644,1741065056184,-1460.42,0.00012964,2]
[355323645,1741065056193,-2420.72,0.00012964,2]
[355323646,1741065056203,-2942.16,0.00012964,2]
[355323647,1741065056212,-1481.73,0.00012964,2]
[355323648,1741065056221,-1326.66,0.00012964,2]
[355323649,1741065056230,-344.33,0.00012964,2]
[355323650,1741065056239,-500.0,0.00012964,2]
[355323651,1741065056249,-626.8,0.00012964,2]
[355323652,1741065056258,-5513.7,0.00012964,2]
[355323653,1741065056274,-500.0,0.00012964,2]
[355323654,1741065056283,-1099.02,0.00012964,2]
[355323655,1741065056292,-2269.69,0.00012964,2]
[355323656,1741065056302,-500.0,0.00012964,2]
[355323657,1741065056312,-649.41,0.00012964,2]
[355323658,1741065056321,-2437.41,0.00012964,2]
[355323659,1741065056331,-500.0,0.00012964,2]
[355323660,1741065056340,-500.0,0.00012964,2]
[355323661,1741065056351,-2647.55,0.00012964,2]
[355323663,1741065056360,-642.14,0.00012964,2]
[355323665,1741065056370,-2093.23,0.00012964,2]
[355323667,1741065056380,-4154.56,0.00012964,2]
[355323669,1741065056392,-500.0,0.00012964,2]
[355323671,1741065056405,-1230.39,0.00012964,2]
[355323673,1741065056415,-500.0,0.00012964,2]
[355323675,1741065056425,-1343.82,0.00012964,2]
[355323677,1741065056435,-679.17,0.00012964,2]
[355323679,1741065056445,-500.0,0.00012964,2]
[355323681,1741065056455,-1108.87,0.00012964,2]
[355323683,1741065056465,-2775.13,0.00012964,2]
[355323685,1741065056475,-2524.21,0.00012964,2]
[355323687,1741065056484,-670.79,0.00012964,2]
[355323689,1741065056494,-500.0,0.00012964,2]
[355323691,1741065056503,-209.92,0.00012964,2]
[355323693,1741065056513,-1863.49,0.00012964,2]
[355323695,1741065056529,-500.0,0.00012964,2]
[355323697,1741065056548,-500.0,0.00012964,2]
[355323699,1741065056559,-500.0,0.00012964,2]
[355323701,1741065056569,-1586.83,0.00012964,2]
[355323703,1741065056579,-500.0,0.00012964,2]
[355323705,1741065056589,-500.0,0.00012964,2]
[355323707,1741065056599,-2905.03,0.00012964,2]
[355323709,1741065056608,-2532.77,0.00012964,2]
[355323711,1741065056618,-500.0,0.00012964,2]
[355323713,1741065056627,-503.05764324,0.00012964,2]
[355323715,1741065056637,-500.0,0.00012964,2]
[355323717,1741065056646,-1876.63,0.00012964,2]
[355323719,1741065056656,-1272.38,0.00012964,2]
[355323721,1741065056666,-572.16236928,0.00012964,2]
[355323723,1741065056675,-1994.69,0.00012964,2]
[355323725,1741065056685,-1088.01,0.00012964,2]
[355323727,1741065056695,-1886.81,0.00012964,2]
[355323729,1741065056704,-2396.76322876,0.00012964,2]
[355323784,1741065057241,-371.46677124,0.00012964,2]
[355323786,1741065057251,-1104.8299814,0.00012964,2]
[355323870,1741065058072,1000.0,0.00011837,2]
[355323910,1741065058468,-7999.97,0.0001269,2]
[355323912,1741065058477,-620.69425599,0.0001269,2]
[355323914,1741065058487,-500.0,0.00012692,2]
[355323916,1741065058497,-2301.73,0.00012692,2]
[355323918,1741065058507,-1156.2200186,0.00012964,2]
[355323921,1741065058516,-1726.85,0.00012964,2]
[355323923,1741065058530,-1689.55,0.00012964,2]
[355323925,1741065058540,-609.74,0.00012964,2]
[355323926,1741065058550,-585.27,0.00012964,2]
[355323928,1741065058559,-796.02,0.00012964,2]
[355323930,1741065058568,-4374.0,0.00012964,2]
[355323932,1741065058578,-500.0,0.00012964,2]
[355323934,1741065058588,-1101.18,0.00012964,2]
[355323936,1741065058598,-500.0,0.00012964,2]
[355323938,1741065058608,-7999.97,0.00012964,2]
[355323941,1741065058620,-500.0,0.00012965,2]
[355323942,1741065058629,-3853.0,0.00012966,2]
[355323944,1741065058638,-500.0,0.00012966,2]
[355323946,1741065058648,-1263.61,0.00012966,2]
[355323948,1741065058657,-1102.85,0.00012966,2]
[355323950,1741065058667,-1403.28,0.00012966,2]
[355323952,1741065058677,-500.0,0.00012966,2]
[355323954,1741065058686,-1416.46,0.00012966,2]
[355323956,1741065058695,-761.86,0.00012966,2]
[355323958,1741065058705,-922.31,0.00012966,2]
[355323960,1741065058715,-500.0,0.00012966,2]
[355323962,1741065058724,-500.0,0.00012966,2]
[355323964,1741065058734,-502.61151669,0.00012966,2]
[355323966,1741065058743,-35.38838254,0.00012966,2]
[355323969,1741065058755,-466.18060083,0.00012966,2]
[355323970,1741065058764,-500.0,0.00012966,2]
[355323972,1741065058775,-1171.63191203,0.00012966,2]
[355324065,1741065059850,-167.70682393,0.000129,2]
[355324066,1741065059860,-593.39808797,0.00012966,2]
[355324067,1741065059870,-503.98149461,0.00012966,2]
[355324068,1741065059881,-500.0,0.00012966,2]
[355324070,1741065059890,-500.0,0.00012966,2]
[355324071,1741065059900,-500.0,0.00012966,2]
[355324073,1741065059910,-167.40539224,0.00012966,2]
[355324075,1741065059923,-332.59460776,0.00012966,2]
[355324077,1741065059933,-500.0,0.00012966,2]
[355324079,1741065059942,-500.0,0.00012966,2]
[355324081,1741065059951,-500.0,0.00012966,2]
[355324083,1741065059961,-500.0,0.00012966,2]
[355324085,1741065059971,-1279.11,0.00012966,2]
[355324087,1741065059981,-500.0,0.00012966,2]
[355324089,1741065059991,-520.29,0.00012966,2]
[355324091,1741065060001,-501.20586417,0.00012966,2]
[355324093,1741065060011,-1100.4,0.00012966,2]
[355324095,1741065060022,-635.72,0.00012966,2]
[355324097,1741065060032,-500.0,0.00012966,2]
[355324099,1741065060043,-500.0,0.00012966,2]
[355324101,1741065060053,-500.0,0.00012966,2]
[355324103,1741065060062,-500.0,0.00012966,2]
[355324105,1741065060073,-1483.51,0.00012966,2]
[355324107,1741065060092,-120.85955142,0.00012966,2]
[355324111,1741065060118,-457.46955249,0.00012966,2]
[355324181,1741065060810,-500.0,0.0001269,2]
[355324183,1741065060820,-298.92089609,0.00012966,2]
[355324185,1741065060830,-37.77910391,0.00012966,2]
[355324190,1741065060862,-462.22089609,0.00012966,2]
[355324192,1741065060872,-500.90197595,0.00012966,2]
[355324194,1741065060881,-500.0,0.00012966,2]
[355324196,1741065060891,-500.0,0.00012966,2]
[355324198,1741065060900,-1357.57,0.00012966,2]
[355324199,1741065060909,-501.65508166,0.00012966,2]
[355324201,1741065060919,-500.0,0.00012966,2]
[355324203,1741065060928,-500.0,0.00012966,2]
[355324205,1741065060937,-500.0,0.00012966,2]
[355324207,1741065060947,-500.0,0.00012966,2]
[355324209,1741065060956,-1916.93,0.00012966,2]
[355324211,1741065060965,-501.60431243,0.00012966,2]
[355324213,1741065060976,-500.0,0.00012966,2]
[355324215,1741065060985,-500.0,0.00012966,2]
[355324217,1741065060994,-1070.99,0.00012966,2]
[355324219,1741065061003,-500.98077237,0.00012966,2]
[355324221,1741065061013,-500.0,0.00012966,2]